[Event "2nd Kalyan Dombivali 2019"]
[Site "Kalyan"]
[Date "2019.01.30"]
[Round "3"]
[White "Saranya, J."]
[Black "Nawin M S"]
[Result "1-0"]
[ECO "A06"]
[WhiteElo "2094"]
[BlackElo "1424"]
[Annotator "NA RC"]
[PlyCount "98"]
[EventDate "2019.01.28"]
[EventType "swiss"]
[EventRounds "10"]
[EventCountry "IND"]
[SourceTitle "playchess.com"]
[Source "ChessBase"]
[SourceQuality "1"]
[TimeControl "5400+30"]

1. Nf3 {[%emt 0:09:24]} d5 {[%emt 0:00:00]} 2. g3 {[%emt 0:00:07]} Nf6 {[%emt 0:00:03]} 3. Bg2 {[%emt 0:00:05]} e6 {[%emt 0:00:33]} 4. O-O {[%emt 0:01:16]} Bd6 {[%emt 0:01:49]} 5. d4 {[%emt 0:05:32]} Nbd7 {[%emt 0:00:41]} 6. c4 {[%emt 0:05:57]} c6 {[%emt 0:03:05]} 7. Nbd2 {[%emt 0:18:13]} e5 {[%emt 0:15:53]} 8. cxd5 {[%emt 0:10:20]} cxd5 {[%emt 0:00:49]} 9. dxe5 {[%emt 0:03:26]} Nxe5 {[%emt 0:02:18]} 10. Nxe5 {[%emt 0:02:39]} Bxe5 {[%emt 0:00:25]} 11. Nf3 {[%emt 0:00:29]} Bd6 {[%emt 0:03:33]} 12. Bg5 {[%emt 0:08:12]} Be7 {[%emt 0:03:24]} 13. Ne5 {[%emt 0:04:18]} O-O {[%emt 0:03:23]} 14. Rc1 {[%emt 0:00:40]} Be6 {[%emt 0:08:52]} 15. Qa4 {[%emt 0:03:33]} Ne4 {[%emt 0:19:01]} 16. Be3 {[%emt 0:04:16]} Nd6 {[%emt 0:03:55]} 17. Rfd1 {[%emt 0:04:59]} f6 {[%emt 0:03:19]} 18. Nd3 {[%emt 0:00:14]} Nc4 {[%emt 0:07:29]} 19. Rxc4 {[%emt 0:05:49]} dxc4 {[%emt 0:00:35]} 20. Nf4 {[%emt 0:00:15]} Qc8 {[%emt 0:00:48]} 21. Nxe6 {[%emt 0:00:09]} Re8 {[%emt 0:01:07]} 22. Qd7 {[%emt 0:01:56]} Qxd7 {[%emt 0:03:15]} 23. Rxd7 {[%emt 0:00:07]} Bf8 {[%emt 0:01:16]} 24. Bd5 {[%emt 0:02:19]} Kh8 {[%emt 0:00:07]} 25. Nxf8 {[%emt 0:01:21]} Rxf8 {[%emt 0:00:02]} 26. Bxb7 {[%emt 0:00:18]} Rad8 {[%emt 0:01:46]} 27. Rxd8 {[%emt 0:00:17]} Rxd8 {[%emt 0:00:06]} 28. Ba6 {[%emt 0:00:06]} Rb8 {[%emt 0:01:56]} 29. Bd4 {[%emt 0:00:51]} Rb4 {[%emt 0:00:44]} 30. a3 {[%emt 0:00:10]} Ra4 {[%emt 0:00:29]} 31. Bb5 {[%emt 0:00:10]} Ra5 {[%emt 0:00:04]} 32. a4 {[%emt 0:00:08]} a6 {[%emt 0:01:15]} 33. Bc3 {[%emt 0:00:53]} Rxb5 {[%emt 0:00:14]} 34. axb5 {[%emt 0:00:05]} axb5 {[%emt 0:00:06]} 35. f4 {[%emt 0:00:11]} Kg8 {[%emt 0:00:09]} 36. Kf2 {[%emt 0:00:17]} Kf7 {[%emt 0:00:06]} 37. Ke3 {[%emt 0:00:02]} Ke6 {[%emt 0:00:07]} 38. Kd4 {[%emt 0:00:04]} Kd6 {[%emt 0:00:03]} 39. e4 {[%emt 0:00:05]} h5 {[%emt 0:00:08]} 40. e5+ {[%emt 0:00:02]} fxe5+ {[%emt 0:00:08]} 41. fxe5+ {[%emt 0:00:03]} Ke6 {[%emt 0:00:24]} 42. Kc5 {[%emt 0:00:03]} g5 {[%emt 0:00:08]} 43. Kxb5 {[%emt 0:00:06]} h4 {[%emt 0:00:05]} 44. gxh4 {[%emt 0:00:03]} gxh4 {[%emt 0:00:02]} 45. Kxc4 {[%emt 0:00:06]} h3 {[%emt 0:00:09]} 46. b4 {[%emt 0:00:02]} Kd7 {[%emt 0:00:06]} 47. Kd5 {[%emt 0:00:04]} Ke7 {[%emt 0:00:06]} 48. e6 {[%emt 0:00:04]} Ke8 {[%emt 0:00:06]} 49. Kd6 {[%emt 0:00:09]} Kd8 {[%emt 0:00:07]} 1-0

[Event "2nd Kalyan Dombivali 2019"]
[Site "Kalyan"]
[Date "2019.01.30"]
[Round "3"]
[White "Ahmed, Feroz"]
[Black "Mayekar Ayush"]
[Result "1-0"]
[ECO "A15"]
[WhiteElo "1919"]
[BlackElo "1389"]
[Annotator "NA RC"]
[PlyCount "71"]
[EventDate "2019.01.28"]
[EventType "swiss"]
[EventRounds "10"]
[EventCountry "IND"]
[SourceTitle "playchess.com"]
[Source "ChessBase"]
[SourceQuality "1"]
[TimeControl "5400+30"]

1. c4 {[%emt 0:00:00]} Nf6 {[%emt 0:01:56]} 2. g3 {[%emt 0:00:13]} g6 {[%emt 0:00:20]} 3. Bg2 {[%emt 0:00:15]} Bg7 {[%emt 0:00:16]} 4. Nc3 {[%emt 0:00:13]} c6 {[%emt 0:00:32]} 5. e4 {[%emt 0:00:35]} e5 {[%emt 0:00:46]} 6. Nf3 {[%emt 0:01:17]} Qc7 {[%emt 0:01:32]} 7. d4 {[%emt 0:00:30]} d6 {[%emt 0:00:19]} 8. O-O {[%emt 0:02:32]} O-O {[%emt 0:03:11]} 9. h3 {[%emt 0:00:46]} b6 {[%emt 0:04:14]} 10. Be3 {[%emt 0:02:18]} Bb7 {[%emt 0:02:51]} 11. Qd2 {[%emt 0:00:37]} Re8 {[%emt 0:01:27]} 12. Rad1 {[%emt 0:16:06]} a6 {[%emt 0:05:14]} 13. d5 {[%emt 0:05:10]} c5 {[%emt 0:03:18]} 14. Bh6 {[%emt 0:00:22]} Nh5 {[%emt 0:04:30]} 15. Bxg7 {[%emt 0:00:25]} Nxg7 {[%emt 0:00:46]} 16. Nh2 {[%emt 0:03:18]} f5 {[%emt 0:01:08]} 17. f4 {[%emt 0:00:38]} Nd7 {[%emt 0:01:35]} 18. g4 {[%emt 0:01:13]} Rf8 {[%emt 0:02:14]} 19. gxf5 {[%emt 0:08:23]} gxf5 {[%emt 0:00:11]} 20. exf5 {[%emt 0:00:28]} Nxf5 {[%emt 0:02:24]} 21. Ng4 {[%emt 0:00:02]} Rae8 {[%emt 0:02:26]} 22. fxe5 {[%emt 0:00:19]} Nxe5 {[%emt 0:00:31]} 23. Rxf5 {[%emt 0:00:30]} Rxf5 {[%emt 0:03:40]} 24. Nh6+ {[%emt 0:00:13]} Kh8 {[%emt 0:00:06]} 25. Nxf5 {[%emt 0:00:15]} Nxc4 {[%emt 0:00:12]} 26. Qh6 {[%emt 0:00:44]} Qf7 {[%emt 0:03:35]} 27. Nxd6 {[%emt 0:01:02]} Nxd6 {[%emt 0:01:01]} 28. Qxd6 {[%emt 0:00:03]} Qg7 {[%emt 0:01:27]} 29. Rf1 {[%emt 0:02:10]} b5 {[%emt 0:02:50]} 30. Qf6 {[%emt 0:01:17]} Qxf6 {[%emt 0:00:09]} 31. Rxf6 {[%emt 0:00:02]} b4 {[%emt 0:00:19]} 32. Na4 {[%emt 0:00:10]} Rd8 {[%emt 0:01:00]} 33. Nxc5 {[%emt 0:02:02]} Bxd5 {[%emt 0:00:25]} 34. Bxd5 {[%emt 0:00:08]} Rxd5 {[%emt 0:00:05]} 35. Rf8+ {[%emt 0:00:50]} Kg7 {[%emt 0:00:11]} 36. Ne6+ {[%emt 0:00:03]} 1-0

[Event "2nd Kalyan Dombivali 2019"]
[Site "Kalyan"]
[Date "2019.01.30"]
[Round "3"]
[White "Sparsh Khandelwal"]
[Black "Pande Pradip"]
[Result "1-0"]
[ECO "B18"]
[WhiteElo "1823"]
[BlackElo "1385"]
[Annotator "NA RC"]
[PlyCount "53"]
[EventDate "2019.01.28"]
[EventType "swiss"]
[EventRounds "10"]
[EventCountry "IND"]
[SourceTitle "playchess.com"]
[Source "ChessBase"]
[SourceQuality "1"]
[TimeControl "5400+30"]

1. e4 {[%emt 0:00:00]} c6 {[%emt 0:00:00]} 2. d4 d5 {[%emt 0:00:00]} 3. Nc3 {[%emt 0:01:29]} dxe4 {[%emt 0:01:11]} 4. Nxe4 {[%emt 0:00:06]} Bf5 {[%emt 0:00:11]} 5. Ng3 {[%emt 0:00:07]} Bg6 {[%emt 0:00:09]} 6. Nh3 {[%emt 0:00:33]} Nf6 {[%emt 0:00:44]} 7. Nf4 {[%emt 0:00:09]} e6 {[%emt 0:00:11]} 8. h4 {[%emt 0:01:05]} Qa5+ {[%emt 0:04:28]} 9. Bd2 {[%emt 0:01:34]} Bb4 {[%emt 0:01:28]} 10. h5 {[%emt 0:06:29]} Bxd2+ {[%emt 0:02:35]} 11. Qxd2 {[%emt 0:00:04]} Qxd2+ {[%emt 0:00:23]} 12. Kxd2 {[%emt 0:00:04]} Bf5 {[%emt 0:00:07]} 13. Nxf5 {[%emt 0:00:05]} exf5 {[%emt 0:00:02]} 14. Bd3 {[%emt 0:01:21]} Ne4+ {[%emt 0:00:55]} 15. Bxe4 {[%emt 0:00:46]} fxe4 {[%emt 0:00:03]} 16. Rae1 {[%emt 0:00:17]} f5 {[%emt 0:02:41]} 17. Ne6 {[%emt 0:00:39]} Kd7 {[%emt 0:00:52]} 18. Nxg7 {[%emt 0:00:05]} Rf8 {[%emt 0:00:32]} 19. h6 {[%emt 0:00:15]} Na6 {[%emt 0:00:21]} 20. Rh5 {[%emt 0:00:06]} Rf6 {[%emt 0:04:48]} 21. Rxf5 {[%emt 0:00:13]} Raf8 {[%emt 0:02:11]} 22. g4 {[%emt 0:00:39]} Nb4 23. Rxe4 Nd5 {[%emt 0:03:58]} 24. c4 {[%emt 0:01:09]} Ne7 {[%emt 0:00:41]} 25. Rxf6 {[%emt 0:01:12]} Rxf6 {[%emt 0:00:02]} 26. f4 {[%emt 0:00:13]} Rxh6 {[%emt 0:01:19]} 27. Rxe7+ {[%emt 0:00:11]} 1-0

[Event "2nd Kalyan Dombivali 2019"]
[Site "Kalyan"]
[Date "2019.01.30"]
[Round "3"]
[White "Subramanian, R M"]
[Black "Isha Pritam Inamdar"]
[Result "1-0"]
[ECO "B23"]
[WhiteElo "1780"]
[BlackElo "1380"]
[Annotator "NA RC"]
[PlyCount "77"]
[EventDate "2019.01.28"]
[EventType "swiss"]
[EventRounds "10"]
[EventCountry "IND"]
[SourceTitle "playchess.com"]
[Source "ChessBase"]
[SourceQuality "1"]
[TimeControl "5400+30"]

1. e4 {[%emt 0:00:00]} c5 {[%emt 0:00:00]} 2. Nc3 {[%emt 0:00:00]} g6 {[%emt 0:00:00]} 3. f4 {[%emt 0:00:00]} Bg7 {[%emt 0:00:00]} 4. Nf3 {[%emt 0:00:00]} Nc6 {[%emt 0:00:00]} 5. Bb5 {[%emt 0:00:00]} Nd4 {[%emt 0:00:00]} 6. O-O {[%emt 0:00:07]} e6 {[%emt 0:05:46]} 7. d3 {[%emt 0:00:12]} Ne7 {[%emt 0:01:04]} 8. Nxd4 {[%emt 0:01:32]} cxd4 {[%emt 0:01:25]} 9. Ne2 {[%emt 0:00:04]} O-O {[%emt 0:00:52]} 10. Qe1 {[%emt 0:05:22]} a6 {[%emt 0:00:19]} 11. Ba4 {[%emt 0:00:05]} b5 {[%emt 0:07:12]} 12. Bb3 {[%emt 0:00:02]} Bb7 {[%emt 0:00:08]} 13. Qf2 {[%emt 0:03:02]} Nc6 {[%emt 0:03:11]} 14. f5 {[%emt 0:00:49]} exf5 {[%emt 0:26:34]} 15. exf5 {[%emt 0:01:07]} d5 {[%emt 0:00:37]} 16. f6 {[%emt 0:02:19]} Bh8 {[%emt 0:01:15]} 17. Nxd4 {[%emt 0:01:49]} Ne5 {[%emt 0:03:45]} 18. Qh4 {[%emt 0:04:54]} Nd7 {[%emt 0:06:00]} 19. Bg5 {[%emt 0:00:32]} Nc5 {[%emt 0:02:32]} 20. Rf3 {[%emt 0:02:00]} Bc8 {[%emt 0:00:12]} 21. Nc6 {[%emt 0:00:24]} Nxb3 {[%emt 0:02:34]} 22. Nxd8 {[%emt 0:00:14]} Rxd8 {[%emt 0:00:40]} 23. axb3 {[%emt 0:00:13]} Be6 {[%emt 0:00:17]} 24. Re1 {[%emt 0:00:30]} Re8 {[%emt 0:00:19]} 25. Rfe3 {[%emt 0:00:08]} Rac8 {[%emt 0:00:38]} 26. c3 {[%emt 0:00:11]} h5 {[%emt 0:00:36]} 27. Qf4 {[%emt 0:00:07]} Rc6 {[%emt 0:01:04]} 28. Re5 {[%emt 0:02:24]} Rec8 {[%emt 0:00:37]} 29. Rxe6 {[%emt 0:00:14]} Rxe6 {[%emt 0:00:05]} 30. Rxe6 {[%emt 0:00:04]} fxe6 {[%emt 0:00:06]} 31. f7+ {[%emt 0:00:02]} Kf8 {[%emt 0:00:14]} 32. Bh6+ {[%emt 0:00:50]} Bg7 {[%emt 0:00:18]} 33. Qd6+ {[%emt 0:00:03]} Kxf7 {[%emt 0:00:08]} 34. Qd7+ {[%emt 0:00:03]} Kf6 {[%emt 0:00:05]} 35. Bxg7+ {[%emt 0:00:06]} Kf5 {[%emt 0:00:04]} 36. Qf7+ {[%emt 0:00:10]} Kg5 {[%emt 0:00:07]} 37. Qf6+ {[%emt 0:00:12]} Kg4 {[%emt 0:00:03]} 38. h3+ {[%emt 0:00:11]} Kg3 {[%emt 0:00:04]} 39. Qg5# {[%emt 0:00:05]} 1-0

[Event "2nd Kalyan Dombivali 2019"]
[Site "Kalyan"]
[Date "2019.01.30"]
[Round "3"]
[White "Javheri, Jaydev"]
[Black "Lad Mandar Pradip"]
[Result "1-0"]
[ECO "B53"]
[WhiteElo "1675"]
[BlackElo "1364"]
[Annotator "NA RC"]
[PlyCount "90"]
[EventDate "2019.01.28"]
[EventType "swiss"]
[EventRounds "10"]
[EventCountry "IND"]
[SourceTitle "playchess.com"]
[Source "ChessBase"]
[SourceQuality "1"]
[TimeControl "5400+30"]

1. e4 {[%emt 0:00:00]} c5 {[%emt 0:00:00]} 2. Nf3 {[%emt 0:00:00]} d6 {[%emt 0:00:07]} 3. d4 {[%emt 0:00:00]} cxd4 {[%emt 0:00:03]} 4. Qxd4 {[%emt 0:00:00]} Nc6 {[%emt 0:00:16]} 5. Bb5 {[%emt 0:00:00]} Bd7 {[%emt 0:00:33]} 6. Bxc6 {[%emt 0:00:10]} Bxc6 {[%emt 0:02:04]} 7. Nc3 {[%emt 0:00:09]} Nf6 {[%emt 0:00:08]} 8. Bg5 {[%emt 0:00:49]} Qb6 {[%emt 0:02:37]} 9. Qxb6 {[%emt 0:04:01]} axb6 {[%emt 0:00:06]} 10. Bxf6 {[%emt 0:00:18]} gxf6 {[%emt 0:00:11]} 11. O-O {[%emt 0:03:57]} Rg8 {[%emt 0:03:23]} 12. Nd5 {[%emt 0:01:30]} Bxd5 {[%emt 0:08:16]} 13. exd5 {[%emt 0:00:05]} Rc8 {[%emt 0:05:41]} 14. c3 {[%emt 0:00:39]} Bh6 {[%emt 0:07:24]} 15. Rfe1 {[%emt 0:00:32]} Rc5 {[%emt 0:01:46]} 16. Rad1 {[%emt 0:00:29]} Kd7 {[%emt 0:00:55]} 17. Rd4 {[%emt 0:02:14]} Bg5 {[%emt 0:03:55]} 18. Red1 {[%emt 0:08:19]} h5 {[%emt 0:05:01]} 19. Rb4 {[%emt 0:04:15]} Ra8 {[%emt 0:06:08]} 20. a3 {[%emt 0:02:18]} Raa5 {[%emt 0:06:40]} 21. Rbd4 {[%emt 0:02:36]} Rab5 {[%emt 0:01:19]} 22. b4 {[%emt 0:03:35]} Rxc3 {[%emt 0:04:08]} 23. a4 {[%emt 0:00:10]} Ra3 {[%emt 0:04:17]} 24. axb5 {[%emt 0:00:12]} Ra8 {[%emt 0:00:10]} 25. Nxg5 {[%emt 0:00:23]} fxg5 {[%emt 0:00:05]} 26. Rc4 {[%emt 0:00:10]} Rc8 {[%emt 0:00:06]} 27. Rxc8 {[%emt 0:00:07]} Kxc8 {[%emt 0:00:04]} 28. h4 {[%emt 0:00:15]} g4 {[%emt 0:00:14]} 29. Kh2 {[%emt 0:00:19]} Kd7 {[%emt 0:00:07]} 30. Kg3 {[%emt 0:00:09]} e5 {[%emt 0:00:05]} 31. dxe6+ {[%emt 0:00:07]} fxe6 {[%emt 0:00:04]} 32. Kf4 {[%emt 0:00:18]} e5+ {[%emt 0:00:02]} 33. Kf5 {[%emt 0:00:18]} Ke7 {[%emt 0:00:04]} 34. Rd5 {[%emt 0:00:10]} g3 {[%emt 0:00:03]} 35. fxg3 {[%emt 0:00:08]} Kd7 {[%emt 0:00:05]} 36. g4 {[%emt 0:00:16]} hxg4 {[%emt 0:00:05]} 37. h5 {[%emt 0:00:19]} Kc8 {[%emt 0:00:07]} 38. h6 {[%emt 0:00:13]} Kb8 {[%emt 0:00:03]} 39. Rxd6 {[%emt 0:00:16]} Ka7 {[%emt 0:00:02]} 40. h7 {[%emt 0:00:20]} g3 {[%emt 0:00:12]} 41. Rd1 {[%emt 0:00:13]} e4 {[%emt 0:00:06]} 42. Ra1+ {[%emt 0:00:10]} Kb8 {[%emt 0:00:05]} 43. h8=Q+ Kc7 44. Rc1+ {[%emt 0:00:58]} Kd7 {[%emt 0:00:40]} 45. Qg7+ {[%emt 0:01:06]} Ke8 1-0

[Event "2nd Kalyan Dombivali 2019"]
[Site "Kalyan"]
[Date "2019.01.30"]
[Round "3"]
[White "Ankur Mahesh Gokhale"]
[Black "Pawaar Sohum"]
[Result "1-0"]
[ECO "B00"]
[WhiteElo "1628"]
[BlackElo "1359"]
[Annotator "NA RC"]
[PlyCount "119"]
[EventDate "2019.01.28"]
[EventType "swiss"]
[EventRounds "10"]
[EventCountry "IND"]
[SourceTitle "playchess.com"]
[Source "ChessBase"]
[SourceQuality "1"]
[TimeControl "5400+30"]

1. e4 {[%emt 0:00:00]} Nc6 {[%emt 0:00:08]} 2. d4 {[%emt 0:00:00]} d5 {[%emt 0:00:18]} 3. e5 {[%emt 0:00:08]} Bf5 {[%emt 0:01:00]} 4. c3 {[%emt 0:00:26]} e6 {[%emt 0:02:24]} 5. Bb5 {[%emt 0:00:19]} a6 {[%emt 0:04:43]} 6. Bd3 {[%emt 0:02:26]} Nge7 {[%emt 0:04:06]} 7. Ne2 {[%emt 0:01:14]} Qd7 {[%emt 0:11:00]} 8. Bf4 {[%emt 0:02:14]} h6 {[%emt 0:01:16]} 9. h4 {[%emt 0:00:10]} Bxd3 {[%emt 0:08:38]} 10. Qxd3 {[%emt 0:00:10]} Nc8 {[%emt 0:01:25]} 11. a4 {[%emt 0:01:30]} Na5 {[%emt 0:00:20]} 12. Nd2 {[%emt 0:01:03]} b6 {[%emt 0:08:42]} 13. b4 {[%emt 0:03:35]} Nb7 {[%emt 0:00:16]} 14. Nf3 {[%emt 0:05:45]} c6 {[%emt 0:02:14]} 15. O-O {[%emt 0:04:45]} b5 {[%emt 0:03:10]} 16. axb5 {[%emt 0:00:39]} cxb5 {[%emt 0:00:02]} 17. Ra2 {[%emt 0:00:08]} Nb6 {[%emt 0:01:18]} 18. Rfa1 {[%emt 0:00:09]} Na4 {[%emt 0:00:26]} 19. Nd2 {[%emt 0:00:39]} Qc6 {[%emt 0:06:13]} 20. Nb3 {[%emt 0:04:49]} Be7 {[%emt 0:01:15]} 21. Nc5 {[%emt 0:01:24]} Bxh4 {[%emt 0:01:26]} 22. Nxa4 {[%emt 0:00:38]} bxa4 {[%emt 0:00:51]} 23. Rxa4 {[%emt 0:00:12]} O-O {[%emt 0:02:44]} 24. b5 {[%emt 0:01:21]} Qc7 {[%emt 0:00:40]} 25. Rxa6 {[%emt 0:00:11]} Rxa6 {[%emt 0:00:21]} 26. bxa6 {[%emt 0:00:33]} Na5 {[%emt 0:00:11]} 27. Qb5 {[%emt 0:02:38]} Nc4 {[%emt 0:00:41]} 28. Qb7 {[%emt 0:00:16]} Bd8 {[%emt 0:01:25]} 29. Nc1 {[%emt 0:10:51]} Na5 {[%emt 0:11:50]} 30. Qb4 {[%emt 0:09:36]} Qb6 {[%emt 0:07:10]} 31. a7 {[%emt 0:01:28]} Qxa7 {[%emt 0:04:31]} 32. Nb3 {[%emt 0:00:22]} Be7 {[%emt 0:02:47]} 33. Qxa5 {[%emt 0:00:00]} Qxa5 {[%emt 0:00:23]} 34. Rxa5 {[%emt 0:00:46]} Rb8 {[%emt 0:00:38]} 35. Nc5 {[%emt 0:00:26]} Bd8 {[%emt 0:02:09]} 36. Ra2 {[%emt 0:00:20]} Be7 {[%emt 0:01:08]} 37. Ra5 {[%emt 0:02:21]} Bd8 {[%emt 0:00:22]} 38. Ra7 {[%emt 0:00:13]} Bb6 {[%emt 0:00:43]} 39. Rb7 {[%emt 0:00:07]} Rxb7 {[%emt 0:00:09]} 40. Nxb7 {[%emt 0:00:05]} g5 {[%emt 0:00:12]} 41. Bc1 {[%emt 0:00:12]} Kg7 {[%emt 0:00:53]} 42. Nd6 {[%emt 0:00:06]} Ba5 {[%emt 0:01:09]} 43. c4 {[%emt 0:00:19]} dxc4 {[%emt 0:00:09]} 44. Nxc4 {[%emt 0:00:02]} Bc3 {[%emt 0:00:21]} 45. Bb2 {[%emt 0:00:04]} Bb4 {[%emt 0:00:10]} 46. Ne3 {[%emt 0:00:43]} Kg6 {[%emt 0:00:45]} 47. Kf1 {[%emt 0:00:17]} h5 {[%emt 0:00:41]} 48. g3 {[%emt 0:00:28]} g4 {[%emt 0:00:36]} 49. d5 {[%emt 0:00:11]} exd5 {[%emt 0:00:45]} 50. Nxd5 {[%emt 0:00:07]} Bd2 {[%emt 0:01:46]} 51. Ke2 {[%emt 0:00:12]} Bg5 {[%emt 0:00:20]} 52. Nf6 {[%emt 0:00:57]} Bh6 {[%emt 0:00:52]} 53. Kd3 {[%emt 0:00:32]} Bf8 {[%emt 0:00:51]} 54. Ke4 {[%emt 0:00:17]} Bc5 {[%emt 0:00:35]} 55. Bd4 {[%emt 0:00:06]} Bb4 {[%emt 0:00:32]} 56. Nd5 {[%emt 0:00:13]} Bf8 {[%emt 0:00:18]} 57. Be3 {[%emt 0:00:08]} Ba3 {[%emt 0:00:32]} 58. Bd2 {[%emt 0:00:28]} Bc5 {[%emt 0:00:29]} 59. Nf4+ {[%emt 0:00:05]} Kh7 {[%emt 0:01:04]} 60. Be3 {[%emt 0:00:05]} 1-0

[Event "2nd Kalyan Dombivali 2019"]
[Site "Kalyan"]
[Date "2019.01.30"]
[Round "3"]
[White "Shivshankar Iyer S"]
[Black "Pethe Varad"]
[Result "1-0"]
[ECO "D30"]
[WhiteElo "1619"]
[BlackElo "1359"]
[Annotator "NA RC"]
[PlyCount "97"]
[EventDate "2019.01.28"]
[EventType "swiss"]
[EventRounds "10"]
[EventCountry "IND"]
[SourceTitle "playchess.com"]
[Source "ChessBase"]
[SourceQuality "1"]
[TimeControl "5400+30"]

1. d4 {[%emt 0:00:00]} d5 2. c4 {[%emt 0:00:00]} e6 {[%emt 0:00:00]} 3. g3 {[%emt 0:00:00]} Nf6 {[%emt 0:00:00]} 4. Nf3 {[%emt 0:00:00]} b6 {[%emt 0:00:08]} 5. Bg2 {[%emt 0:00:08]} Bb7 {[%emt 0:00:05]} 6. cxd5 {[%emt 0:02:48]} exd5 {[%emt 0:00:09]} 7. O-O {[%emt 0:00:33]} Bd6 {[%emt 0:00:09]} 8. Nc3 {[%emt 0:00:17]} O-O {[%emt 0:00:23]} 9. Nh4 {[%emt 0:00:39]} c6 {[%emt 0:03:17]} 10. Nf5 {[%emt 0:01:28]} Bc7 {[%emt 0:01:07]} 11. e4 {[%emt 0:00:34]} Bc8 {[%emt 0:02:56]} 12. Ne3 {[%emt 0:04:54]} dxe4 {[%emt 0:04:44]} 13. Nxe4 {[%emt 0:00:07]} Nxe4 {[%emt 0:03:04]} 14. Bxe4 {[%emt 0:00:06]} Re8 {[%emt 0:00:13]} 15. Bd3 {[%emt 0:03:39]} Be6 {[%emt 0:01:46]} 16. b3 {[%emt 0:04:36]} Nd7 {[%emt 0:02:26]} 17. Qc2 {[%emt 0:06:57]} Nf6 {[%emt 0:00:41]} 18. Rd1 {[%emt 0:00:15]} Bd5 {[%emt 0:01:06]} 19. Bb2 {[%emt 0:04:39]} Bd6 {[%emt 0:08:05]} 20. Re1 {[%emt 0:05:23]} Bb4 {[%emt 0:05:14]} 21. Rf1 Rc8 {[%emt 0:02:58]} 22. a3 {[%emt 0:01:21]} Bd6 {[%emt 0:00:21]} 23. b4 {[%emt 0:00:55]} Be4 {[%emt 0:03:11]} 24. Rac1 {[%emt 0:03:01]} Qd7 {[%emt 0:02:46]} 25. f3 {[%emt 0:03:14]} Bxd3 {[%emt 0:04:12]} 26. Qxd3 {[%emt 0:00:07]} Nd5 {[%emt 0:00:50]} 27. Ng4 {[%emt 0:03:54]} f6 {[%emt 0:01:56]} 28. Rfe1 {[%emt 0:00:22]} Rxe1+ {[%emt 0:00:57]} 29. Rxe1 {[%emt 0:00:08]} Re8 {[%emt 0:00:06]} 30. Rxe8+ {[%emt 0:05:23]} Qxe8 {[%emt 0:00:07]} 31. Qe4 {[%emt 0:00:02]} Qe7 {[%emt 0:01:59]} 32. Kf2 {[%emt 0:02:13]} h5 {[%emt 0:00:52]} 33. Ne3 {[%emt 0:02:41]} Nxe3 {[%emt 0:00:42]} 34. Kxe3 {[%emt 0:01:09]} f5 {[%emt 0:01:11]} 35. Qxe7 {[%emt 0:00:40]} Bxe7 {[%emt 0:00:01]} 36. Kf4 {[%emt 0:00:15]} g6 {[%emt 0:00:18]} 37. d5 {[%emt 0:01:40]} Bd6+ {[%emt 0:05:01]} 38. Be5 {[%emt 0:00:16]} Bf8 {[%emt 0:05:22]} 39. Kg5 {[%emt 0:05:12]} cxd5 {[%emt 0:00:46]} 40. Kxg6 {[%emt 0:00:16]} a6 {[%emt 0:00:12]} 41. Kxf5 {[%emt 0:01:15]} a5 {[%emt 0:00:50]} 42. bxa5 {[%emt 0:01:03]} bxa5 {[%emt 0:00:14]} 43. a4 {[%emt 0:01:16]} Bc5 {[%emt 0:00:25]} 44. Bc7 {[%emt 0:00:24]} d4 {[%emt 0:01:26]} 45. Bxa5 {[%emt 0:00:49]} d3 {[%emt 0:00:19]} 46. Ke4 {[%emt 0:00:55]} Bb6 {[%emt 0:00:16]} 47. Bd2 {[%emt 0:00:18]} Kf7 {[%emt 0:00:19]} 48. Kxd3 {[%emt 0:00:14]} Ke6 {[%emt 0:00:08]} 49. a5 {[%emt 0:00:32]} 1-0

[Event "2nd Kalyan Dombivali 2019"]
[Site "Kalyan"]
[Date "2019.01.30"]
[Round "3"]
[White "Arvind, Ramnath Iyer"]
[Black "Satkar, Chirag"]
[Result "0-1"]
[ECO "C55"]
[WhiteElo "1567"]
[BlackElo "2071"]
[Annotator "NA RC"]
[PlyCount "76"]
[EventDate "2019.01.28"]
[EventType "swiss"]
[EventRounds "10"]
[EventCountry "IND"]
[SourceTitle "playchess.com"]
[Source "ChessBase"]
[SourceQuality "1"]
[TimeControl "5400+30"]

1. e4 {[%emt 0:11:56]} e5 {[%emt 0:00:00]} 2. Nf3 {[%emt 0:02:19]} Nc6 {[%emt 0:00:00]} 3. Bc4 {[%emt 0:01:48]} Nf6 {[%emt 0:00:31]} 4. d3 {[%emt 0:00:23]} h6 {[%emt 0:00:15]} 5. O-O {[%emt 0:00:35]} d6 {[%emt 0:01:01]} 6. c3 {[%emt 0:01:43]} g6 {[%emt 0:00:26]} 7. Be3 {[%emt 0:00:28]} Bg7 {[%emt 0:00:35]} 8. Re1 {[%emt 0:02:32]} O-O {[%emt 0:02:45]} 9. Nbd2 {[%emt 0:02:50]} a6 {[%emt 0:09:38]} 10. Bb3 {[%emt 0:02:34]} Ng4 {[%emt 0:29:06]} 11. Nf1 {[%emt 0:06:37]} Kh7 {[%emt 0:04:00]} 12. h3 {[%emt 0:00:40]} Nxe3 {[%emt 0:02:12]} 13. Nxe3 {[%emt 0:03:39]} f5 {[%emt 0:01:59]} 14. exf5 {[%emt 0:03:42]} gxf5 {[%emt 0:00:22]} 15. Bc2 {[%emt 0:00:58]} d5 {[%emt 0:02:13]} 16. Qe2 {[%emt 0:05:43]} Be6 {[%emt 0:02:25]} 17. Rad1 {[%emt 0:01:34]} Qf6 {[%emt 0:05:37]} 18. Nd2 {[%emt 0:02:55]} Kh8 {[%emt 0:04:13]} 19. f3 {[%emt 0:01:16]} Rae8 {[%emt 0:03:20]} 20. Nb3 {[%emt 0:01:14]} d4 {[%emt 0:07:37]} 21. Nf1 {[%emt 0:03:27]} b6 {[%emt 0:01:28]} 22. c4 {[%emt 0:01:07]} Bf7 {[%emt 0:01:14]} 23. a3 {[%emt 0:02:59]} Ne7 {[%emt 0:00:33]} 24. Nbd2 {[%emt 0:00:39]} Ng6 {[%emt 0:00:16]} 25. g3 {[%emt 0:00:34]} Rg8 {[%emt 0:00:37]} 26. Kh2 {[%emt 0:00:39]} Bf8 {[%emt 0:00:30]} 27. b4 {[%emt 0:01:15]} h5 {[%emt 0:04:23]} 28. f4 {[%emt 0:01:35]} exf4 {[%emt 0:07:14]} 29. Qxh5+ {[%emt 0:00:52]} Kg7 {[%emt 0:00:02]} 30. Rxe8 {[%emt 0:00:51]} Bxe8 {[%emt 0:00:03]} 31. gxf4 {[%emt 0:01:22]} Bd6 {[%emt 0:01:15]} 32. Ng3 {[%emt 0:01:39]} Bxf4 {[%emt 0:02:11]} 33. Qf3 {[%emt 0:01:32]} Bc6 {[%emt 0:01:00]} 34. Qf2 {[%emt 0:01:05]} Qh4 {[%emt 0:01:04]} 35. Rg1 {[%emt 0:07:20]} Qxh3+ {[%emt 0:00:42]} 36. Kxh3 {[%emt 0:01:13]} Rh8+ {[%emt 0:00:01]} 37. Nh5+ {[%emt 0:00:30]} Rxh5+ {[%emt 0:00:03]} 38. Qh4 {[%emt 0:00:06]} Rxh4# {[%emt 0:00:03]} 0-1